Workbook

Sheet меню 3-7
A1: "Согласовано" | E1: "Утверждаю"
A2: ________________________ | E2: Заместитель генерального директора по организации питания АО "Департамент продовольствия и социального питания г. Казани"
A3: __________________________ | E3: __________________А.К. Агапова
E4: Май 2025г
B5: Примерное 10-ти дневное меню
A6: для организации питания детей в дошкольных учреждениях с аллергическими заболеваниями
B7: с 7-12 часовым пребыванием от 3-7 лет
B8: 1 неделя
A9: День 1 - ый
A10: Наименование блюда и продуктов | C10: Выход блюда | D10: Пищевые вещества | G10: Энергетич. | H10: Сборник рецептур
G11: ценность
D12: белки | E12: жиры | F12: угл-ды | G12: Ккал
B13: ЗАВТРАК
A14: Каша гречневая вязкая с маслом | C14: 200/3 | D14: 3.82 | E14: 4.62 | F14: 21.20 | G14: 142.00 | H14: №168 Сбор.ДОУ 2010г
A15: Чай черный | C15: 200 | D15: 0.06 | E15: 0.02 | F15: 0.01 | G15: 0.50 | H15: ТК№375 Дели 2011
A16: Бутерброд с маслом сливочным, сыром | C16: 35/5/6 | D16: 5.25 | E16: 7.88 | F16: 15.32 | G16: 128.60 | H16: №3 Дели2010
A17: Итого: | C17: 449 | D17: =SUM(D14:D16) -> 9.13 | E17: =SUM(E14:E16) -> 12.52 | F17: =SUM(F14:F16) -> 36.53 | G17: =SUM(G14:G16) -> 271.10
A18: Сок фруктовый | C18: 125 | D18: 0.60 | E18: 0.12 | F18: 12.00 | G18: 51.48 | H18: №418Дели2016
A19: Итого: | C19: 125 | D19: =SUM(D18) -> 0.60 | E19: =SUM(E18) -> 0.12 | F19: =SUM(F18) -> 12.00 | G19: =SUM(G18) -> 51.48
B20: ОБЕД
A21: Огурцы свежие порционно | C21: 50 | D21: 0.35 | E21: 0.05 | F21: 0.95 | G21: 6.00 | H21: стр563,сб1996
A22: Щи со свежей капустой,с гренками, мясными фрикадельками | C22: 200/20/20 | D22: 6.70 | E22: 7.44 | F22: 13.20 | G22: 147.00 | H22: ТТК №11А
A23: Фрикадельки из индейки | C23: 70 | D23: 12.32 | E23: 5.59 | F23: 10.25 | G23: 140.60 | H23: ТТК№2А
A24: Каша рисовая вязкая с маслом | C24: 150/5 | D24: 1.62 | E24: 3.85 | F24: 16.72 | G24: 107.98 | H24: №168 Сбор.ДОУ 2010г
A25: Компот из сушеных яблок | C25: 200 | D25: 0.26 | E25: 0.26 | F25: 10.27 | G25: 44.50 | H25: ТК№394 Дели 2016
A26: Хлеб ржаной | C26: 40 | D26: 2.64 | E26: 0.48 | F26: 19.50 | G26: 88.00
A27: Итого: | C27: 755 | D27: =SUM(D21:D26) -> 23.89 | E27: =SUM(E21:E26) -> 17.67 | F27: =SUM(F21:F26) -> 70.89 | G27: =SUM(G21:G26) -> 534.08
B28: УПЛОТНЕННЫЙ ПОЛДНИК
A29: Биточки рубленые из говядины (паровые) | C29: 70 | D29: 8.90 | E29: 8.40 | F29: 21.50 | G29: 197.00 | H29: ТТК №7Д акт к.п.2014
A30: Рагу овощное | C30: 150 | D30: 2.23 | E30: 6.20 | F30: 11.07 | G30: 109.00 | H30: ТТК№5А
A31: Напиток из шиповника | C31: 180 | D31: 0.58 | E31: 0.25 | F31: 6.32 | G31: 30.16 | H31: ТТК № 59
A32: Хлебцы классические | C32: 2 шт/14 | D32: 1.40 | E32: 0.63 | F32: 14.80 | G32: 70.50
A33: Хлеб ржаной | C33: 30 | D33: 1.44 | E33: 0.36 | F33: 10.50 | G33: 53.20
A34: Итого: | C34: 444 | D34: =SUM(D29:D33) -> 14.55 | E34: =SUM(E29:E33) -> 15.84 | F34: =SUM(F29:F33) -> 64.19 | G34: =SUM(G29:G33) -> 459.86
A35: ВСЕГО: | C35: 1773 | D35: =D17+D19+D27+D34 -> 48.17 | E35: =E17+E19+E27+E34 -> 46.15 | F35: =F17+F19+F27+F34 -> 183.61 | G35: =G17+G19+G27+G34 -> 1316.52
A37: День 2 - ой
A38: Наименование блюда и продуктов | C38: Выход блюда | D38: Пищевые вещества | G38: Энергетич. | H38: Сборник рецептур
G39: ценность
D40: белки | E40: жиры | F40: угл-ды | G40: Ккал
B41: ЗАВТРАК
A42: Каша кукурузная вязкая с маслом | C42: 200/3 | D42: 2.53 | E42: 3.99 | F42: 25.37 | G42: 147.50 | H42: №168 Сбор.ДОУ 2010г
A43: Чай зеленый | C43: 200 | D43: 0.06 | E43: 0.02 | F43: 0.01 | G43: 0.50 | H43: ТК№375Дели2011
A44: Бутерброд с маслом сливочным, сыром | C44: 35/5/6 | D44: 5.25 | E44: 7.88 | F44: 15.32 | G44: 128.60 | H44: №3 Дели2010
A45: Итого: | C45: 449 | D45: =SUM(D41:D44) -> 7.84 | E45: =SUM(E41:E44) -> 11.89 | F45: =SUM(F41:F44) -> 40.70 | G45: =SUM(G41:G44) -> 276.60
A46: Груши зеленые | C46: 95 | D46: 0.38 | E46: 0.29 | F46: 9.79 | G46: 43.30 | H46: № 386 Дели 2016
A47: Итого: | C47: 95 | D47: =SUM(D46) -> 0.38 | E47: =SUM(E46) -> 0.29 | F47: =SUM(F46) -> 9.79 | G47: =SUM(G46) -> 43.30
B48: ОБЕД
A49: Салат из свежих огурцов | C49: 50 | D49: 0.37 | E49: 3.00 | F49: 1.20 | G49: 33.50 | H49: №13, Дели 2016
A50: Суп из овощей, гренками, мясными фрикадельками | C50: 200/15/10 | D50: 7.40 | E50: 7.50 | F50: 16.60 | G50: 164.00 | H50: ТТК №7А
A51: Гуляш из говядины | C51: 80 | D51: 13.50 | E51: 9.90 | F51: 6.70 | G51: 170.00 | H51: ТК№260Дели2011
A52: Каша пшенная вязкая с маслом | C52: 150/5 | D52: 3.00 | E52: 2.25 | F52: 11.00 | G52: 76.25 | H52: №168 Сбор.ДОУ 2010г
A53: Компот из чернослива | C53: 180 | D53: 0.77 | E53: 0.23 | F53: 25.70 | G53: 108.00 | H53: ТК№349 Дели2011
A54: Хлеб ржаной | C54: 40 | D54: 2.64 | E54: 0.48 | F54: 14.00 | G54: 70.90
A55: Итого: | C55: 730 | D55: =SUM(D48:D54) -> 27.68 | E55: =SUM(E48:E54) -> 23.36 | F55: =SUM(F48:F54) -> 75.20 | G55: =SUM(G48:G54) -> 622.65
B56: УПЛОТНЕННЫЙ ПОЛДНИК
A57: Котлеты рубленые из индейки паровые | C57: 70 | D57: 12.32 | E57: 3.59 | F57: 10.25 | G57: 122.60 | H57: ТТК№9А
A58: Овощи припущеные | C58: 150 | D58: 2.53 | E58: 10.32 | F58: 9.34 | G58: 140.30 | H58: ТТК№10А
A59: Чай черный | C59: 200 | D59: 0.06 | E59: 0.02 | F59: 0.01 | G59: 0.50 | H59: ТК№375Дели2011
A60: Хлебцы классические | C60: 2 шт/14 | D60: 1.40 | E60: 0.63 | F60: 14.80 | G60: 70.50
A61: Хлеб ржаной | C61: 30 | D61: 1.44 | E61: 0.36 | F61: 10.50 | G61: 53.20
A62: Итого: | C62: 464 | D62: =SUM(D56:D61) -> 17.75 | E62: =SUM(E56:E61) -> 14.92 | F62: =SUM(F56:F61) -> 44.90 | G62: =SUM(G56:G61) -> 387.10
A63: ВСЕГО: | C63: 1738 | D63: =D45+D47+D55+D62 -> 53.65 | E63: =E45+E47+E55+E62 -> 50.45 | F63: =F45+F47+F55+F62 -> 170.59 | G63: =G45+G47+G55+G62 -> 1329.65
A65: День 3 - ий
A66: Наименование блюда и продуктов | C66: Выход блюда | D66: Пищевые вещества | G66: Энергетич. | H66: Сборник рецептур
G67: ценность
D68: белки | E68: жиры | F68: угл-ды | G68: Ккал
B69: ЗАВТРАК
A70: Каша геркулесовая вязкая с маслом | C70: 200/3 | D70: 3.73 | E70: 5.46 | F70: 21.92 | G70: 151.70 | H70: №168 Сбор.ДОУ 2010г
A71: Чай черный | C71: 200 | D71: 0.06 | E71: 0.02 | F71: 0.01 | G71: 0.50 | H71: ТК№375Дели2011
A72: Бутерброд с маслом сливочным, сыром | C72: 35/5/6 | D72: 5.25 | E72: 7.88 | F72: 15.32 | G72: 128.60 | H72: №3 Дели2010
A73: Итого: | C73: 449 | D73: =SUM(D70:D72) -> 9.04 | E73: =SUM(E70:E72) -> 13.36 | F73: =SUM(F70:F72) -> 37.25 | G73: =SUM(G70:G72) -> 280.80
A74: Сок фруктовый | C74: 125 | D74: 0.60 | E74: 0.12 | F74: 12.00 | G74: 51.48 | H74: №418Дели2016
A75: Итого: | C75: 125 | D75: =SUM(D74) -> 0.60 | E75: =SUM(E74) -> 0.12 | F75: =SUM(F74) -> 12.00 | G75: =SUM(G74) -> 51.48
B76: ОБЕД
A77: Огурцы соленые | C77: 50 | D77: 0.40 | E77: 0.05 | F77: 0.85 | G77: 5.50 | H77: стр563,сб1996
A78: Суп рисовый, с гренками, с мясными фрикадельками | C78: 200/15/10 | D78: 6.50 | E78: 7.50 | F78: 20.70 | G78: 176.00 | H78: ТК №13 Дели 2016
A79: Тефтели говядины (паровые) | C79: 70 | D79: 6.2 | E79: 6.5 | F79: 5 | G79: 103 | H79: ТТК № 1152 от 09.10.2020 и №364 С-Петербург 2008
A80: Капуста тушеная | C80: 150 | D80: 3.25 | E80: 12.18 | F80: 9.01 | G80: 158.70 | H80: ТК№321 Дели2011
A81: Компот из сушеных яблок | C81: 200 | D81: 0.26 | E81: 0.26 | F81: 10.27 | G81: 44.50 | H81: ТК№394 Дели 2016
A82: Хлеб ржаной | C82: 40 | D82: 2.64 | E82: 0.48 | F82: 19.50 | G82: 88.00
A83: Итого: | C83: 735 | D83: =SUM(D76:D82) -> 19.25 | E83: =SUM(E76:E82) -> 26.97 | F83: =SUM(F76:F82) -> 65.33 | G83: =SUM(G76:G82) -> 575.70
B84: УПЛОТНЕННЫЙ ПОЛДНИК
A85: Индейка тушеная | C85: 70 | D85: 14.63 | E85: 9.71 | F85: 5.20 | G85: 166.70 | H85: ТТК№13А
A86: Макароны отварные | C86: 130 | D86: 4.80 | E86: 3.60 | F86: 29.40 | G86: 169.00 | H86: №218 Дели 2016
A87: Напиток из шиповника | C87: 180 | D87: 0.58 | E87: 0.25 | F87: 6.32 | G87: 30.16 | H87: ТТК № 59
A88: Хлебцы классические | C88: 2 шт/14 | D88: 1.40 | E88: 0.63 | F88: 14.80 | G88: 70.50
A89: Хлеб ржаной | C89: 30 | D89: 1.44 | E89: 0.36 | F89: 10.50 | G89: 53.20
A90: Итого: | C90: 424 | D90: =SUM(D84:D89) -> 22.85 | E90: =SUM(E84:E89) -> 14.55 | F90: =SUM(F84:F89) -> 66.22 | G90: =SUM(G84:G89) -> 489.56
A91: ВСЕГО: | C91: 1733 | D91: =D73+D75+D83+D90 -> 51.74 | E91: =E73+E75+E83+E90 -> 55.00 | F91: =F73+F75+F83+F90 -> 180.80 | G91: =G73+G75+G83+G90 -> 1397.54
A93: День 4 - ый
A94: Наименование блюда и продуктов | C94: Выход блюда | D94: Пищевые вещества | G94: Энергетич. | H94: Сборник рецептур
G95: ценность
D96: белки | E96: жиры | F96: угл-ды | G96: Ккал
B97: ЗАВТРАК
A98: Каша рисовая вязкая с маслом | C98: 200/3 | D98: 2.14 | E98: 3.93 | F98: 26.27 | G98: 149.00 | H98: №168 Сбор.ДОУ 2010г
A99: Чай зеленый | C99: 200 | D99: 0.06 | E99: 0.02 | F99: 0.01 | G99: 0.50 | H99: ТК№375Дели2011
A100: Бутерброд с маслом сливочным, сыром | C100: 35/5/6 | D100: 5.25 | E100: 7.88 | F100: 15.32 | G100: 128.60 | H100: №3 Дели2010
A101: Итого: | C101: 449 | D101: =SUM(D97:D100) -> 7.45 | E101: =SUM(E97:E100) -> 11.83 | F101: =SUM(F97:F100) -> 41.60 | G101: =SUM(G97:G100) -> 278.10
A102: Яблоко зеленое | C102: 95 | D102: 0.38 | E102: 0.38 | F102: 9.31 | G102: 42.20 | H102: № 386 Дели 2016
A103: Итого: | C103: 95 | D103: =SUM(D102) -> 0.38 | E103: =SUM(E102) -> 0.38 | F103: =SUM(F102) -> 9.31 | G103: =SUM(G102) -> 42.20
B104: ОБЕД
A105: Салат из капусты с яблоками | C105: 50 | D105: 1.00 | E105: 2.30 | F105: 5.00 | G105: 45.00 | H105: №7 Партнер 2014
A106: Суп с перловой крупой с гренками, с мясными фрикадельками | C106: 200/15/10 | D106: 6.40 | E106: 7.40 | F106: 19.30 | G106: 170.00 | H106: ТТК №14 А
A107: Биточки рубленые из индейки паровые | C107: 70 | D107: 12.32 | E107: 3.59 | F107: 10.25 | G107: 122.60 | H107: ТТК№15А
A108: Капуста отварная цветная с маслом | C108: 150/5 | D108: 4.08 | E108: 4.29 | F108: 6.86 | G108: 83.21 | H108: № 320 Сбор.ДОУ 2010г
A109: Компот из свежих яблок | C109: 200 | D109: 0.26 | E109: 0.26 | F109: 13.11 | G109: 54.44 | H109: ТК №390 Дели2016
A110: Хлеб ржаной | C110: 40 | D110: 2.64 | E110: 0.48 | F110: 19.50 | G110: 88.00
A111: Итого: | C111: 740 | D111: =SUM(D104:D110) -> 26.70 | E111: =SUM(E104:E110) -> 18.32 | F111: =SUM(F104:F110) -> 74.02 | G111: =SUM(G104:G110) -> 563.25
B112: УПЛОТНЕННЫЙ ПОЛДНИК
A113: Кулеш с говядиной с геркулесовая крупой, маслом | C113: 150/3 | D113: 18.19 | E113: 16.48 | F113: 28.42 | G113: 334.80 | H113: ТТК№17А
A114: Компот из чернослива | C114: 180 | D114: 0.77 | E114: 0.23 | F114: 25.70 | G114: 108.00 | H114: ТК№349 Дели2011
A115: Хлебцы классические | C115: 2 шт/14 | D115: 1.40 | E115: 0.63 | F115: 14.80 | G115: 70.50
A116: Хлеб ржаной | C116: 30 | D116: 1.44 | E116: 0.36 | F116: 10.50 | G116: 53.20
A117: Итого: | C117: 377 | D117: =SUM(D112:D116) -> 21.80 | E117: =SUM(E112:E116) -> 17.70 | F117: =SUM(F112:F116) -> 79.42 | G117: =SUM(G112:G116) -> 566.50
A118: ВСЕГО: | C118: 1661 | D118: =D101+D103+D111+D117 -> 56.33 | E118: =E101+E103+E111+E117 -> 48.23 | F118: =F101+F103+F111+F117 -> 204.35 | G118: =G101+G103+G111+G117 -> 1450.05
A120: День 5 - ый
A121: Наименование блюда и продуктов | C121: Выход блюда | D121: Пищевые вещества | G121: Энергетич. | H121: Сборник рецептур
G122: ценность
D123: белки | E123: жиры | F123: угл-ды | G123: Ккал
B124: ЗАВТРАК
A125: Каша ячневая вязкая с маслом | C125: 200/3 | D125: 3.04 | E125: 4.02 | F125: 24.80 | G125: 147.50 | H125: №168 Сбор.ДОУ 2010г
A126: Чай черный | C126: 200 | D126: 0.06 | E126: 0.02 | F126: 0.01 | G126: 0.50 | H126: ТК№375Дели2011
A127: Бутерброд с маслом сливочным, сыром | C127: 35/5/6 | D127: 5.25 | E127: 7.88 | F127: 15.32 | G127: 128.60 | H127: №3 Дели2010
A128: Итого: | C128: 449 | D128: =SUM(D124:D127) -> 8.35 | E128: =SUM(E124:E127) -> 11.92 | F128: =SUM(F124:F127) -> 40.13 | G128: =SUM(G124:G127) -> 276.60
A129: Сок фруктовый | C129: 125 | D129: 0.60 | E129: 0.12 | F129: 12.00 | G129: 51.48 | H129: №418Дели2016
A130: Итого: | C130: 125 | D130: =SUM(D129) -> 0.60 | E130: =SUM(E129) -> 0.12 | F130: =SUM(F129) -> 12.00 | G130: =SUM(G129) -> 51.48
B131: ОБЕД
A132: Огурцы свежие порционно | C132: 50 | D132: 0.35 | E132: 0.05 | F132: 0.95 | G132: 6.00 | H132: стр563,сб1996
A133: Щи со свежей капустой,с гренками, мясными фрикадельками | C133: 200/20/20 | D133: 6.70 | E133: 7.44 | F133: 13.20 | G133: 147.00 | H133: ТТК №11А
A134: Котлеты рубленые из индейки паровые | C134: 70 | D134: 10.78 | E134: 3.14 | F134: 8.96 | G134: 107.00 | H134: ТТК№9А
A135: Каша пшенная вязкая с маслом | C135: 150/5 | D135: 3.00 | E135: 2.25 | F135: 11.00 | G135: 76.25 | H135: №168 Сбор.ДОУ 2010г
A136: Компот из сушеных яблок | C136: 200 | D136: 0.26 | E136: 0.26 | F136: 10.27 | G136: 44.50 | H136: ТК№394 Дели 2016
A137: Хлеб ржаной | C137: 40 | D137: 2.64 | E137: 0.48 | F137: 19.50 | G137: 88.00
A138: Итого: | C138: 755 | D138: =SUM(D131:D137) -> 23.73 | E138: =SUM(E131:E137) -> 13.62 | F138: =SUM(F131:F137) -> 63.88 | G138: =SUM(G131:G137) -> 468.75
B139: УПЛОТНЕННЫЙ ПОЛДНИК
A140: Голубцы ленивые | C140: 150 | D140: 15.45 | E140: 13.01 | F140: 16.96 | G140: 246.70 | H140: ТТК№20А
A141: Напиток из шиповника | C141: 180 | D141: 0.58 | E141: 0.25 | F141: 6.32 | G141: 30.16 | H141: ТТК № 59
A142: Хлебцы классические | C142: 2 шт/14 | D142: 1.40 | E142: 0.63 | F142: 14.80 | G142: 70.50
A143: Хлеб ржаной | C143: 30 | D143: 1.44 | E143: 0.36 | F143: 10.50 | G143: 53.20
A144: Итого: | C144: 374 | D144: =SUM(D139:D143) -> 18.87 | E144: =SUM(E139:E143) -> 14.25 | F144: =SUM(F139:F143) -> 48.58 | G144: =SUM(G139:G143) -> 400.56
A145: ВСЕГО: | C145: 1703 | D145: =D128+D130+D138+D144 -> 51.55 | E145: =E128+E130+E138+E144 -> 39.91 | F145: =F128+F130+F138+F144 -> 164.59 | G145: =G128+G130+G138+G144 -> 1197.39
B147: 2 неделя
A148: День 6 - ой
A149: Наименование блюда и продуктов | C149: Выход блюда | D149: Пищевые вещества | G149: Энергетич. | H149: Сборник рецептур
G150: ценность
D151: белки | E151: жиры | F151: угл-ды | G151: Ккал
B152: ЗАВТРАК
A153: Каша гречневая вязкая с маслом | C153: 200/3 | D153: 3.82 | E153: 4.62 | F153: 21.20 | G153: 142.00 | H153: №168 Сбор.ДОУ 2010г
A154: Чай зеленый | C154: 200 | D154: 0.06 | E154: 0.02 | F154: 0.01 | G154: 0.50 | H154: ТК№375Дели2011
A155: Бутерброд с маслом сливочным, сыром | C155: 35/5/6 | D155: 5.25 | E155: 7.88 | F155: 15.32 | G155: 128.60 | H155: №3 Дели2010
A156: Итого: | C156: 449 | D156: =SUM(D152:D155) -> 9.13 | E156: =SUM(E152:E155) -> 12.52 | F156: =SUM(F152:F155) -> 36.53 | G156: =SUM(G152:G155) -> 271.10
A157: Яблоко зеленое | C157: 95 | D157: 0.38 | E157: 0.38 | F157: 9.31 | G157: 42.20 | H157: № 386 Дели 2016
A158: Итого: | C158: 95 | D158: =SUM(D157) -> 0.38 | E158: =SUM(E157) -> 0.38 | F158: =SUM(F157) -> 9.31 | G158: =SUM(G157) -> 42.20
B159: ОБЕД
A160: Огурцы свежие порционно | C160: 50 | D160: 0.35 | E160: 0.05 | F160: 0.95 | G160: 6.00 | H160: стр563,сб1996
A161: Суп крестьянский, с гренками, мясными фрикадельками | C161: 200/15/10 | D161: 7.20 | E161: 8.20 | F161: 23.20 | G161: 196.00 | H161: ТТК№21А
A162: Шницель рубленый из говядины (паровой) | C162: 70 | D162: 12.81 | E162: 8.14 | F162: 10.29 | G162: 165.70 | H162: ТК№267Дели2011
A163: Макароны отварные | C163: 130 | D163: 4.80 | E163: 3.60 | F163: 29.40 | G163: 169.00 | H163: №218 Дели 2016
A164: Компот из свежих яблок | C164: 200 | D164: 0.26 | E164: 0.26 | F164: 13.11 | G164: 54.44 | H164: ТК №390 Дели2016
A165: Хлеб ржаной | C165: 40 | D165: 2.64 | E165: 0.48 | F165: 19.50 | G165: 88.00
A166: Итого: | C166: 715 | D166: =SUM(D159:D165) -> 28.06 | E166: =SUM(E159:E165) -> 20.73 | F166: =SUM(F159:F165) -> 96.45 | G166: =SUM(G159:G165) -> 679.14
B167: УПЛОТНЕННЫЙ ПОЛДНИК
A168: Плов из индейки с перловой крупой | C168: 150 | D168: 18.19 | E168: 9.40 | F168: 32.26 | G168: 286.40 | H168: ТТК№23А
A169: Чай черный | C169: 200 | D169: 0.06 | E169: 0.02 | F169: 0.01 | G169: 0.50 | H169: ТК№375Дели2011
A170: Хлебцы классические | C170: 2 шт/14 | D170: 1.40 | E170: 0.63 | F170: 14.80 | G170: 70.50
A171: Хлеб ржаной | C171: 30 | D171: 1.44 | E171: 0.36 | F171: 10.50 | G171: 53.20
A172: Итого: | C172: 394 | D172: =SUM(D167:D171) -> 21.09 | E172: =SUM(E167:E171) -> 10.41 | F172: =SUM(F167:F171) -> 57.57 | G172: =SUM(G167:G171) -> 410.60
A173: ВСЕГО: | C173: 1653 | D173: =D156+D158+D166+D172 -> 58.66 | E173: =E156+E158+E166+E172 -> 44.03 | F173: =F156+F158+F166+F172 -> 199.86 | G173: =G156+G158+G166+G172 -> 1403.04
A175: День 7 - ой
A176: Наименование блюда и продуктов | C176: Выход блюда | D176: Пищевые вещества | G176: Энергетич. | H176: Сборник рецептур
G177: ценность
D178: белки | E178: жиры | F178: угл-ды | G178: Ккал
B179: ЗАВТРАК
A180: Каша кукурузная вязкая с маслом | C180: 200/3 | D180: 2.53 | E180: 3.99 | F180: 25.37 | G180: 147.50 | H180: №168 Сбор.ДОУ 2010г
A181: Чай черный | C181: 200 | D181: 0.06 | E181: 0.02 | F181: 0.01 | G181: 0.50 | H181: ТК№375Дели2011
A182: Бутерброд с маслом сливочным, сыром | C182: 35/5/6 | D182: 5.25 | E182: 7.88 | F182: 15.32 | G182: 128.60 | H182: №3 Дели2010
A183: Итого: | C183: 449 | D183: =SUM(D179:D182) -> 7.84 | E183: =SUM(E179:E182) -> 11.89 | F183: =SUM(F179:F182) -> 40.70 | G183: =SUM(G179:G182) -> 276.60
A184: Сок фруктовый | C184: 125 | D184: 0.60 | E184: 0.12 | F184: 12.00 | G184: 51.48 | H184: №418Дели2016
A185: Итого: | C185: 125 | D185: =SUM(D184) -> 0.60 | E185: =SUM(E184) -> 0.12 | F185: =SUM(F184) -> 12.00 | G185: =SUM(G184) -> 51.48
B186: ОБЕД
A187: Салат из свежей капусты | C187: 50 | D187: 0.80 | E187: 2.50 | F187: 4.60 | G187: 45.00 | H187: № 21Дели 2016
A188: Суп с геркулесовой крупой, с гренками, мясными фрикадельками | C188: 200/15/10 | D188: 3.60 | E188: 10.28 | F188: 4.36 | G188: 124.00 | H188: ТТК №24А
A189: Гуляш из говядины | C189: 80 | D189: 13.50 | E189: 9.90 | F189: 6.70 | G189: 170.00 | H189: ТК№260Дели2011
A190: Каша гречневая вязкая с маслом | C190: 150/5 | D190: 7.22 | E190: 8.17 | F190: 44.28 | G190: 266.87 | H190: №182,Дели 2016
A191: Компот из сушеных яблок | C191: 200 | D191: 0.26 | E191: 0.26 | F191: 10.27 | G191: 44.50 | H191: ТК№394 Дели 2016
A192: Хлеб ржаной | C192: 40 | D192: 2.64 | E192: 0.48 | F192: 19.50 | G192: 88.00
A193: Итого: | C193: 750 | D193: =SUM(D186:D192) -> 28.02 | E193: =SUM(E186:E192) -> 31.59 | F193: =SUM(F186:F192) -> 89.71 | G193: =SUM(G186:G192) -> 738.37
B194: УПЛОТНЕННЫЙ ПОЛДНИК
A195: Фрикадельки из индейки | C195: 70 | D195: 12.32 | E195: 5.59 | F195: 10.25 | G195: 140.60 | H195: ТТК№2А
A196: Рагу овощное | C196: 150 | D196: 2.23 | E196: 6.20 | F196: 11.07 | G196: 109.00 | H196: ТТК№5А
A197: Напиток из шиповника | C197: 180 | D197: 0.58 | E197: 0.25 | F197: 6.32 | G197: 30.16 | H197: ТТК № 59
A198: Хлебцы классические | C198: 2 шт/14 | D198: 1.40 | E198: 0.63 | F198: 14.80 | G198: 70.50
A199: Хлеб ржаной | C199: 30 | D199: 1.44 | E199: 0.36 | F199: 10.50 | G199: 53.20
A200: Итого: | C200: 444 | D200: =SUM(D194:D199) -> 17.97 | E200: =SUM(E194:E199) -> 13.03 | F200: =SUM(F194:F199) -> 52.94 | G200: =SUM(G194:G199) -> 403.46
A201: ВСЕГО: | C201: 1768 | D201: =D183+D185+D193+D200 -> 54.43 | E201: =E183+E185+E193+E200 -> 56.63 | F201: =F183+F185+F193+F200 -> 195.35 | G201: =G183+G185+G193+G200 -> 1469.91
A203: День 8 - ой
A204: Наименование блюда и продуктов | C204: Выход блюда | D204: Пищевые вещества | G204: Энергетич. | H204: Сборник рецептур
G205: ценность
D206: белки | E206: жиры | F206: угл-ды | G206: Ккал
B207: ЗАВТРАК
... 96 more rows
